bitfinex/quotes_BTCUSD_20250719
["timestamp","ask_amount","ask_price","bid_price","bid_amount"]
[1752966064066,0.36834203,117810.0,117800.0,0.15159783]
[1752966064283,0.36834203,117810.0,117800.0,0.30707913]
[1752966065039,0.28258241,117810.0,117800.0,0.46256043]
[1752966065446,0.28258241,117810.0,117800.0,0.30707913]
[1752966067287,0.28258241,117810.0,117800.0,0.3060645]
[1752966072050,0.28258241,117810.0,117800.0,0.1505832]
[1752966072387,0.28258241,117810.0,117800.0,0.3060645]
[1752966072591,0.36834203,117810.0,117800.0,0.3060645]
[1752966077451,0.34303477,117810.0,117800.0,0.3060645]
[1752966079311,0.34303477,117810.0,117800.0,0.30600267]
[1752966081799,0.36800708,117810.0,117800.0,0.30600267]
[1752966091553,0.36800708,117810.0,117800.0,0.46148397]
[1752966091763,0.36800708,117810.0,117800.0,0.47788397]
[1752966092223,0.25727515,117810.0,117800.0,0.34944397]
[1752966092483,0.25727515,117810.0,117800.0,0.47784397]
[1752966092891,0.25727515,117810.0,117800.0,0.34944397]
[1752966093124,0.25727515,117810.0,117800.0,0.17756267]
[1752966093337,0.25727515,117810.0,117800.0,0.30592267]
[1752966093544,0.34303477,117810.0,117800.0,0.30592267]
[1752966095172,0.36844261,117810.0,117800.0,0.30592267]
[1752966095898,0.34303477,117810.0,117800.0,0.30592267]
[1752966099696,0.34303477,117810.0,117800.0,0.15044137]
[1752966099919,0.34303477,117810.0,117800.0,0.30592267]
[1752966102337,0.36106477,117810.0,117800.0,0.28416267]
[1752966103551,0.36106477,117810.0,117800.0,0.28714267]
[1752966103774,0.36106477,117810.0,117800.0,0.12868137]
[1752966103991,0.53254607,117810.0,117800.0,0.12868137]
[1752966104212,0.87254607,117810.0,117800.0,0.12868137]
[1752966104476,0.87356607,117810.0,117800.0,0.12868137]
[1752966105840,1.00192607,117810.0,117800.0,0.00032137]
[1752966106674,1.00092607,117810.0,117800.0,0.00032137]
[1752966107086,1.00392607,117810.0,117800.0,0.00032137]
[1752966107681,0.87556607,117810.0,117800.0,0.00032137]
[1752966107885,1.00392607,117810.0,117800.0,0.00032137]
[1752966108102,1.00292607,117810.0,117800.0,0.00032137]
[1752966108292,1.00592607,117810.0,117800.0,0.00032137]
[1752966113125,0.85044477,117810.0,117800.0,0.00032137]
[1752966113338,1.00592607,117810.0,117800.0,0.00032137]
[1752966113548,1.17729577,117810.0,117800.0,0.00032137]
[1752966113969,1.02181447,117810.0,117800.0,0.00032137]
[1752966120161,1.08635532,117810.0,117800.0,0.00032137]
[1752966120371,1.24179662,117810.0,117800.0,0.00032137]
[1752966121010,1.11347662,117810.0,117800.0,0.00032137]
[1752966121218,1.24179662,117810.0,117800.0,0.00032137]
[1752966123552,1.08631532,117810.0,117800.0,0.00032137]
[1752966123766,1.24179662,117810.0,117800.0,0.00032137]
[1752966124003,1.08631532,117810.0,117800.0,0.00032137]
[1752966124935,0.93083402,117810.0,117800.0,0.00032137]
[1752966125195,1.08631532,117810.0,117800.0,0.00032137]
[1752966127268,1.29179662,117810.0,117800.0,1e-08]
[1752966128123,1.28879662,117810.0,117800.0,1e-08]
[1752966128327,1.28579662,117810.0,117800.0,1e-08]
[1752966128525,1.29079662,117810.0,117800.0,1e-08]
[1752966128733,1.29479662,117810.0,117800.0,1e-08]
[1752966130571,1.30273534,117810.0,117800.0,1e-08]
[1752966131280,1.30868887,117810.0,117800.0,1e-08]
[1752966133375,0.18678841,117780.0,117770.0,0.01812]
[1752966133595,0.48586633,117780.0,117770.0,0.02035943]
[1752966133829,0.35750633,117780.0,117770.0,0.02035943]
[1752966135988,0.48586633,117780.0,117770.0,0.02035943]
[1752966136522,0.48586633,117780.0,117770.0,0.03645943]
[1752966136955,0.48586633,117780.0,117770.0,0.03745943]
[1752966138313,0.98134763,117780.0,117770.0,0.03645943]
[1752966138534,0.98334763,117780.0,117770.0,0.02145943]
[1752966139005,1.47694763,117780.0,117770.0,0.02145943]
[1752966142408,1.47857763,117780.0,117770.0,0.02145943]
[1752966142653,1.47857763,117780.0,117770.0,0.01936943]
[1752966144639,1.47857763,117780.0,117770.0,0.02147943]
[1752966146871,1.50407467,117780.0,117770.0,0.02147943]
[1752966149353,1.50244467,117780.0,117770.0,0.02147943]
[1752966149855,1.34696337,117780.0,117770.0,0.02147943]
[1752966150334,1.50244467,117780.0,117770.0,0.02147943]
[1752966155081,1.34696337,117780.0,117770.0,0.02147943]
[1752966155264,1.50244467,117780.0,117770.0,0.02147943]
[1752966157642,1.34696337,117780.0,117770.0,0.02147943]
[1752966157891,1.50244467,117780.0,117770.0,0.02147943]
[1752966164160,1.34696337,117780.0,117770.0,0.02147943]
[1752966164388,1.50244467,117780.0,117770.0,0.02147943]
[1752966170312,1.34696337,117780.0,117770.0,0.02147943]
[1752966170560,1.50244467,117780.0,117770.0,0.02147943]
[1752966171377,1.34696337,117780.0,117770.0,0.02147943]
[1752966172867,1.21860337,117780.0,117770.0,0.17696073]
[1752966173122,1.26179573,117780.0,117770.0,0.19216073]
[1752966173347,1.13339573,117780.0,117770.0,0.32056073]
[1752966176422,0.79339573,117780.0,117770.0,0.32056073]
[1752966176635,0.76789869,117780.0,117770.0,0.66284652]
[1752966177010,0.59809014,117780.0,117770.0,0.67982797]
[1752966177228,0.58111028,117780.0,117770.0,0.67982797]
[1752966177444,0.01897972,117780.0,117770.0,0.67982797]
[1752966177660,0.01048975,117780.0,117770.0,0.67982797]
[1752966177855,0.01897965,117780.0,117770.0,0.67982797]
[1752966178859,0.00948975,117780.0,117770.0,0.67982797]
[1752966179066,0.00948975,117780.0,117770.0,0.68082797]
[1752966179280,0.01797972,117780.0,117770.0,0.68082797]
[1752966179472,0.01797965,117780.0,117770.0,0.68082797]
[1752966181367,0.01797965,117780.0,117770.0,0.36986537]
[1752966181601,0.01797965,117780.0,117770.0,0.68082797]
[1752966181842,0.01697965,117780.0,117770.0,0.68082797]
[1752966182323,0.02546969,117780.0,117770.0,0.68082797]
[1752966182744,0.01697965,117780.0,117770.0,0.68082797]
[1752966183157,0.19480315,117800.0,117770.0,0.68082797]
[1752966183158,0.21178085,117800.0,117790.0,0.20958338]
[1752966183393,0.27229247,117800.0,117790.0,0.65755552]
[1752966183596,0.27229247,117800.0,117790.0,0.51562368]
[1752966183780,0.27229247,117800.0,117790.0,0.52411307]
[1752966184168,0.27229247,117800.0,117790.0,0.49864468]
[1752966184582,0.27229247,117800.0,117790.0,0.50713414]
[1752966184945,0.10248755,117800.0,117790.0,0.67110476]
[1752966185184,0.11297637,117800.0,117790.0,0.67959394]
[1752966185578,0.11497637,117800.0,117790.0,0.52411264]
[1752966185866,0.28275565,117800.0,117790.0,0.51562346]
[1752966186270,0.28175565,117800.0,117790.0,0.51562346]
[1752966186657,0.11297637,117800.0,117790.0,0.52411264]
[1752966187333,0.12146526,117800.0,117790.0,0.52411264]
[1752966187658,0.29124454,117800.0,117790.0,0.52411264]
[1752966187915,0.2997335,117800.0,117790.0,0.52411264]
[1752966188119,0.29124497,117800.0,117790.0,0.51562346]
[1752966189168,0.29124497,117800.0,117790.0,0.52411271]
[1752966189332,0.29124497,117800.0,117790.0,0.53260189]
[1752966189333,0.10448784,117800.0,117790.0,0.53260189]
[1752966190306,0.27426712,117800.0,117790.0,0.53260189]
[1752966190676,0.11297673,117800.0,117790.0,0.53260189]
[1752966191115,0.29124497,117800.0,117790.0,0.52411271]
[1752966191877,0.11297673,117800.0,117790.0,0.52411271]
[1752966192086,0.11297673,117800.0,117790.0,0.53260189]
[1752966192321,0.28275601,117800.0,117790.0,0.53260189]
[1752966192526,0.29124497,117800.0,117790.0,0.53260189]
[1752966193933,0.29124497,117800.0,117790.0,0.52411271]
[1752966196700,0.12146569,117800.0,117790.0,0.53260189]
[1752966196901,0.11297673,117800.0,117790.0,0.53260189]
[1752966198339,0.28275601,117800.0,117790.0,0.53260189]
[1752966198544,0.29124497,117800.0,117790.0,0.53260189]
[1752966199413,0.29124497,117800.0,117790.0,0.50713414]
[1752966199829,0.29124497,117800.0,117790.0,0.51562353]
[1752966200033,0.29124497,117800.0,117790.0,0.52411285]
[1752966200394,0.29124497,117800.0,117790.0,0.5326021]
[1752966204265,0.29124497,117800.0,117790.0,0.36863155]
[1752966204471,0.28275623,117800.0,117790.0,0.52411285]
[1752966204680,0.28275623,117800.0,117790.0,0.36863155]
[1752966204889,0.27426741,117800.0,117790.0,0.51562353]
[1752966205924,0.26577852,117800.0,117790.0,0.49864468]
[1752966206469,0.25728956,117800.0,117790.0,0.49864468]
[1752966206859,0.25728956,117800.0,117790.0,0.50713429]
[1752966207084,0.25728956,117800.0,117790.0,0.51562383]
[1752966209491,0.25728956,117800.0,117790.0,0.52411329]
[1752966212021,0.25728956,117800.0,117790.0,0.51562383]
[1752966212231,0.25728956,117800.0,117790.0,0.49972383]
[1752966212649,0.25728956,117800.0,117790.0,0.49123429]
[1752966213897,0.25728956,117800.0,117790.0,0.49972383]
[1752966220842,0.25728956,117800.0,117790.0,0.49466383]
[1752966221014,0.25728956,117800.0,117790.0,0.33918253]
[1752966221233,0.25728956,117800.0,117790.0,0.49466383]
[1752966222991,0.25728956,117800.0,117790.0,0.49979383]
[1752966224676,0.25728956,117800.0,117790.0,0.49130429]
[1752966227296,0.25728956,117800.0,117790.0,0.32733338]
[1752966227495,0.25728956,117800.0,117790.0,0.48281468]
[1752966229381,0.25728956,117800.0,117790.0,0.49130429]
[1752966233025,0.25728956,117800.0,117790.0,0.33582299]
[1752966233243,0.25728956,117800.0,117790.0,0.49130429]
[1752966240625,0.25728956,117800.0,117790.0,0.49110429]
[1752966240857,0.25728956,117800.0,117790.0,0.47570429]
[1752966242605,0.26577816,117800.0,117790.0,0.47570429]
[1752966247701,0.26577816,117800.0,117790.0,0.48419375]
[1752966249248,0.26577816,117800.0,117790.0,0.50117246]
[1752966249466,0.26577816,117800.0,117790.0,0.48419375]
[1752966250456,0.27426698,117800.0,117790.0,0.50117232]
[1752966250688,0.28275594,117800.0,117790.0,0.50117232]
[1752966250898,0.28275594,117800.0,117790.0,0.48419375]
[1752966251110,0.26577852,117800.0,117790.0,0.48419375]
[1752966251979,0.26577852,117800.0,117790.0,0.47570429]
[1752966253042,0.26577852,117800.0,117790.0,0.48419383]
[1752966259772,0.26577852,117800.0,117790.0,0.49268329]
[1752966260103,0.26577852,117800.0,117790.0,0.33720199]
[1752966260321,0.26577852,117800.0,117790.0,0.49268329]
[1752966260770,0.26577852,117800.0,117790.0,0.50117268]
[1752966261148,0.26577852,117800.0,117790.0,0.49268329]
[1752966264316,0.26577852,117800.0,117790.0,0.50117268]
[1752966265372,0.26577852,117800.0,117790.0,0.50065079]
[1752966266170,0.26577852,117800.0,117790.0,0.3366801]
[1752966266437,0.26577852,117800.0,117790.0,0.4921614]
[1752966267839,0.26577852,117800.0,117790.0,0.5081614]
[1752966269667,0.26577852,117800.0,117790.0,0.51665079]
[1752966273610,0.26577852,117800.0,117790.0,0.51717232]
[1752966274851,0.26577852,117800.0,117790.0,0.51717196]
[1752966278342,0.27426726,117800.0,117790.0,0.51717196]
[1752966280447,0.27426726,117800.0,117790.0,0.50868271]
[1752966284594,0.27426726,117800.0,117790.0,0.51717196]
[1752966284815,0.27426726,117800.0,117790.0,0.5171716]
[1752966286896,0.10448704,117800.0,117790.0,0.5171716]
[1752966287198,0.12146446,117800.0,117790.0,0.5171716]
[1752966287384,0.002,117800.0,117790.0,0.6888529]
[1752966288236,0.02546126,117820.0,117810.0,0.22642872]
[1752966288444,0.11097154,117820.0,117810.0,0.51551002]
[1752966289278,0.10248424,117820.0,117810.0,0.67099132]
[1752966289483,0.11109826,117820.0,117810.0,0.51551002]
[1752966289946,0.10261103,117820.0,117810.0,0.51551002]
[1752966290159,0.11109833,117820.0,117810.0,0.51551002]
[1752966290309,0.1195857,117820.0,117810.0,0.51551002]
[1752966290636,0.1195857,117820.0,117810.0,0.51651002]
[1752966290873,0.11109833,117820.0,117810.0,0.51651002]
[1752966293273,0.11109833,117820.0,117810.0,0.36102872]
[1752966293514,0.1195857,117820.0,117810.0,0.51651002]
[1752966294212,0.11109833,117820.0,117810.0,0.51651002]
[1752966295635,0.11109833,117820.0,117810.0,0.67199132]
[1752966296567,0.10261103,117820.0,117810.0,0.67199132]
[1752966296877,0.11958556,117820.0,117810.0,0.67199132]
[1752966297082,0.11958549,117820.0,117810.0,0.67199132]
[1752966297459,0.11958549,117820.0,117810.0,0.51651002]
[1752966298248,0.10261103,117820.0,117810.0,0.51651002]
[1752966298809,0.11109826,117820.0,117810.0,0.67199132]
[1752966299017,0.11109826,117820.0,117810.0,0.51651002]
[1752966301398,0.11958563,117820.0,117810.0,0.50031002]
[1752966302619,0.11109826,117820.0,117810.0,0.50031002]
[1752966305155,0.28933602,117820.0,117810.0,0.50031002]
[1752966305379,0.29782347,117820.0,117810.0,0.50031002]
[1752966305820,0.12807301,117820.0,117810.0,0.50031002]
[1752966306059,0.11958556,117820.0,117810.0,0.50031002]
[1752966306535,0.12807293,117820.0,117810.0,0.50031002]
[1752966307113,0.11958556,117820.0,117810.0,0.50031002]
[1752966307338,0.00012679,117820.0,117810.0,0.67169132]
[1752966324978,0.00012679,117820.0,117810.0,0.54333132]
[1752966325212,0.00012679,117820.0,117810.0,0.67161132]
[1752966329319,0.00861366,117820.0,117810.0,0.67161132]
[1752966329521,0.00012679,117820.0,117810.0,0.67161132]
[1752966331528,0.00012679,117820.0,117810.0,0.65571132]
[1752966335346,0.00861366,117820.0,117810.0,0.65571132]
[1752966335788,0.00861366,117820.0,117810.0,0.34474872]
[1752966336007,0.00861366,117820.0,117810.0,0.65571132]
[1752966336424,0.01710067,117820.0,117810.0,0.65571132]
[1752966336660,0.03407513,117820.0,117810.0,0.65571132]
[1752966336878,0.02558783,117820.0,117810.0,0.65571132]
[1752966337319,0.01710067,117820.0,117810.0,0.65571132]
[1752966337779,0.014795,117820.0,117810.0,0.65571132]
[1752966338006,0.014795,117820.0,117810.0,0.34474872]
[1752966338236,0.014795,117820.0,117810.0,0.65571132]
[1752966338458,0.02328223,117820.0,117810.0,0.65571132]
[1752966338690,0.30653966,117820.0,117810.0,0.31602113]
[1752966338920,0.45964686,117820.0,117810.0,0.001]
[1752966339145,0.46066686,117820.0,117810.0,0.12928]
[1752966339375,0.30518556,117820.0,117810.0,0.12928]
[1752966339604,0.30518556,117820.0,117810.0,0.2847613]
[1752966339852,0.30416556,117820.0,117810.0,0.47150243]
[1752966340061,0.2970525,117820.0,117810.0,0.47999038]
[1752966340342,0.2970525,117820.0,117810.0,0.48847826]
[1752966340756,0.2970525,117820.0,117810.0,0.49155826]
[1752966341391,0.2970525,117820.0,117810.0,0.50004607]
[1752966341738,0.2970525,117820.0,117810.0,0.49155826]
[1752966342349,0.28856541,117820.0,117810.0,0.48307038]
[1752966342857,0.28107811,117820.0,117810.0,0.47458243]
[1752966343274,0.27259074,117820.0,117810.0,0.47150243]
[1752966343486,0.27259074,117820.0,117810.0,0.46301434]
[1752966343701,0.28889074,117820.0,117810.0,0.2847613]
[1752966344395,0.28889074,117820.0,117810.0,0.46301441]
[1752966344619,0.28889074,117820.0,117810.0,0.47150258]
[1752966344852,0.28889074,117820.0,117810.0,0.4799906]
[1752966345914,0.28889074,117820.0,117810.0,0.48847855]
[1752966346142,0.28107819,117820.0,117810.0,0.48847855]
[1752966349850,0.28107819,117820.0,117810.0,0.49155855]
[1752966352948,0.29805294,117820.0,117810.0,0.50004643]
[1752966353622,0.11981496,117820.0,117810.0,0.502046]
[1752966353821,0.11981496,117820.0,117810.0,0.50204556]
[1752966354034,0.28956542,117820.0,117810.0,0.50204556]
[1752966354256,0.11981496,117820.0,117810.0,0.50204556]
[1752966354471,0.11981452,117820.0,117810.0,0.50204556]
[1752966354704,0.12667189,117820.0,117810.0,0.51744556]
[1752966356228,0.11097189,117820.0,117810.0,0.51744556]
[1752966356830,0.11097189,117820.0,117810.0,2.01744556]
[1752966357862,0.11945934,117820.0,117810.0,2.01744556]
[1752966358075,0.29769732,117820.0,117810.0,2.01744556]
[1752966358450,0.11945934,117820.0,117810.0,2.01744556]
[1752966361255,0.11097189,117820.0,117810.0,2.01744556]
[1752966361671,0.13455934,117820.0,117810.0,2.00204556]
[1752966362122,0.11758452,117820.0,117810.0,2.00204556]
[1752966362322,0.11097189,117820.0,117810.0,2.00204556]
[1752966362502,0.11097189,117820.0,117810.0,2.01814556]
[1752966364131,0.11945934,117820.0,117810.0,2.01814556]
[1752966365883,0.11945934,117820.0,117810.0,1.86266426]
[1752966366154,0.11945934,117820.0,117810.0,2.01814556]
[1752966367801,0.10248459,117820.0,117810.0,2.01814556]
[1752966367941,0.11097161,117820.0,117810.0,2.01814556]
[1752966368140,0.11945898,117820.0,117810.0,2.01814556]
[1752966370292,0.28920944,117820.0,117810.0,2.00965783]
[1752966370501,0.29769696,117820.0,117810.0,2.00965783]
[1752966372630,0.1279465,117820.0,117810.0,2.00965783]
[1752966374255,0.11945898,117820.0,117810.0,2.01814556]
[1752966376552,0.11813848,117820.0,117810.0,2.01814556]
[1752966377214,0.12662593,117820.0,117810.0,2.01814556]
[1752966378338,0.11813848,117820.0,117810.0,2.01814556]
[1752966379093,0.2963769,117820.0,117810.0,2.00965783]
[1752966380859,0.12662644,117820.0,117810.0,2.00965783]
[1752966381085,0.11813892,117820.0,117810.0,2.01814556]
[1752966381528,0.10116374,117820.0,117810.0,2.17362686]
[1752966381747,0.19332307,117830.0,117810.0,2.17362686]
[1752966381748,0.18670915,117830.0,117820.0,0.21041237]
[1752966381986,0.1109701,117830.0,117820.0,0.66346198]
[1752966382428,0.10248337,117830.0,117820.0,0.66346198]
[1752966383385,0.10348337,117830.0,117820.0,0.66346198]
[1752966383592,0.10448337,117830.0,117820.0,0.66346198]
[1752966384420,0.10248337,117830.0,117820.0,0.66346198]
[1752966384641,0.1109701,117830.0,117820.0,0.66446198]
[1752966395930,0.28919296,117830.0,117820.0,0.65597497]
[1752966396555,0.28919296,117830.0,117820.0,0.34501237]
[1752966396756,0.28919296,117830.0,117820.0,0.65597497]
[1752966397275,0.28919296,117830.0,117820.0,0.65555607]
[1752966398042,0.28919296,117830.0,117820.0,0.34459347]
[1752966398245,0.28919296,117830.0,117820.0,0.65555607]
[1752966401966,0.28919296,117830.0,117820.0,0.65597511]
[1752966402076,0.28919296,117830.0,117820.0,0.66446227]
[1752966404020,0.28070652,117830.0,117820.0,0.66446227]
[1752966408547,0.28070652,117830.0,117820.0,0.65597511]
[1752966408779,0.27221987,117830.0,117820.0,0.64748788]
[1752966410535,0.27221987,117830.0,117820.0,0.33652528]
[1752966410656,0.27221987,117830.0,117820.0,0.64748788]
[1752966411693,0.27221987,117830.0,117820.0,0.33652528]
[1752966412126,0.27221987,117830.0,117820.0,0.64748788]
[1752966418023,0.27221958,117830.0,117820.0,0.65597504]
[1752966418229,0.28070638,117830.0,117820.0,0.66446213]
[1752966419001,0.10248352,117830.0,117820.0,0.66446213]
[1752966419213,0.10248308,117830.0,117820.0,0.67294914]
[1752966419338,0.11096973,117830.0,117820.0,0.67294914]
[1752966419556,0.10248301,117830.0,117820.0,0.67294914]
[1752966419761,0.10248301,117830.0,117820.0,0.68944914]
[1752966420339,0.08551028,117830.0,117820.0,0.68944914]
[1752966420548,0.03412632,117840.0,117830.0,0.21079559]
[1752966420746,0.1196366,117840.0,117830.0,0.49651689]
[1752966420948,0.1196366,117840.0,117830.0,0.49954689]
[1752966421156,0.12812196,117840.0,117830.0,0.49954689]
[1752966421577,0.13660789,117840.0,117830.0,0.49954689]
[1752966421782,0.12812196,117840.0,117830.0,0.49954689]
[1752966422308,0.1206361,117840.0,117830.0,0.49954689]
[1752966422509,0.12912196,117840.0,117830.0,0.49954689]
[1752966422720,0.13012196,117840.0,117830.0,0.49954689]
[1752966423148,0.1216361,117840.0,117830.0,0.49954689]
[1752966423356,0.13012196,117840.0,117830.0,0.49954689]
[1752966423586,0.13012196,117840.0,117830.0,0.65502819]
[1752966423850,0.13012196,117840.0,117830.0,0.34406559]
[1752966424064,0.11315038,117840.0,117830.0,0.65502819]
[1752966424691,0.1131503,117840.0,117830.0,0.65502819]
[1752966425740,0.11315023,117840.0,117830.0,0.65502819]
[1752966425947,0.10466473,117840.0,117830.0,0.65502819]
[1752966426339,0.11315023,117840.0,117830.0,0.65502819]
[1752966426544,0.10466473,117840.0,117830.0,0.65502819]
[1752966427912,0.1131503,117840.0,117830.0,0.65502819]
[1752966428577,0.10466473,117840.0,117830.0,0.65502819]
[1752966428804,0.10466473,117840.0,117830.0,0.34406559]
[1752966428987,0.1131503,117840.0,117830.0,0.65502819]
[1752966429213,0.10466473,117840.0,117830.0,0.65502819]
[1752966432208,0.11315023,117840.0,117830.0,0.65502819]
[1752966432952,0.10466473,117840.0,117830.0,0.65502819]
[1752966433056,0.0961793,117840.0,117830.0,0.65502819]
[1752966433852,0.0951793,117840.0,117830.0,0.65502819]
[1752966434039,0.0941793,117840.0,117830.0,0.65502819]
[1752966434561,0.0941793,117840.0,117830.0,0.65602819]
[1752966434894,0.11115066,117840.0,117830.0,0.65602819]
[1752966435899,0.11963659,117840.0,117830.0,0.65602819]
[1752966437225,0.00866902,117840.0,117830.0,0.82800949]
[1752966437658,0.0256529,117860.0,117850.0,0.22014753]
[1752966437872,0.11166109,117860.0,117850.0,0.50382883]
[1752966438092,0.11166109,117860.0,117850.0,0.50582883]
[1752966438300,0.11166088,117860.0,117850.0,0.50885883]
[1752966438513,0.11166088,117860.0,117850.0,0.50037398]
[1752966438514,0.12014545,117860.0,117850.0,0.50037398]
[1752966438768,0.12014545,117860.0,117850.0,0.50885898]
[1752966439002,0.29818424,117860.0,117850.0,0.4733892]
[1752966439200,0.29918424,117860.0,117850.0,0.47884441]
[1752966439505,0.29918424,117860.0,117850.0,0.48732941]
[1752966439506,0.12949139,117860.0,117850.0,0.48732941]
[1752966439716,0.29918424,117860.0,117850.0,0.46187391]
[1752966440247,0.29069996,117860.0,117850.0,0.46187391]
[1752966440493,0.29169996,117860.0,117850.0,0.46187391]
[1752966440692,0.30013449,117860.0,117850.0,0.46187391]
[1752966440915,0.30013449,117860.0,117850.0,0.4703592]
[1752966442922,0.30013449,117860.0,117850.0,0.47884441]
[1752966444493,0.30013449,117860.0,117850.0,0.48178441]
[1752966445120,0.30013449,117860.0,117850.0,0.49026955]
[1752966446095,0.30013449,117860.0,117850.0,0.49221955]
[1752966446769,0.30013449,117860.0,117850.0,0.50070462]
[1752966448142,0.30013449,117860.0,117850.0,0.49221955]
[1752966450252,0.30013449,117860.0,117850.0,0.50831955]
[1752966450983,0.30013449,117860.0,117850.0,0.51680462]
[1752966452386,0.28330449,117860.0,117850.0,0.51680419]
[1752966452594,0.29178913,117860.0,117850.0,0.67228549]
[1752966452816,0.29178913,117860.0,117850.0,0.51680419]
[1752966453350,0.29178913,117860.0,117850.0,0.66380056]
[1752966453913,0.29178913,117860.0,117850.0,0.67228556]
[1752966454258,0.29178913,117860.0,117850.0,0.6722852]
[1752966456616,0.29178913,117860.0,117850.0,0.5168039]
[1752966458651,0.29178913,117860.0,117850.0,0.51680354]
[1752966459983,0.66525437,117890.0,117880.0,0.12191502]
[1752966460193,0.8949318,117890.0,117880.0,0.12191502]
[1752966461181,0.8999318,117890.0,117880.0,0.12191502]
[1752966461999,0.9029318,117890.0,117880.0,0.12191502]
[1752966462657,0.91122123,117890.0,117880.0,0.12191502]
[1752966463118,0.94042123,117890.0,117880.0,0.12191502]
[1752966463729,0.96566759,117890.0,117880.0,0.12191502]
[1752966464388,0.97361185,117890.0,117880.0,0.12191502]
[1752966464804,0.96566759,117890.0,117880.0,0.12191502]
[1752966465227,0.97361177,117890.0,117880.0,0.12191502]
[1752966467387,0.94007598,117890.0,117880.0,0.12191502]
[1752966470808,0.94858457,117890.0,117880.0,0.12191502]
[1752966472544,0.97434724,117890.0,117880.0,0.12191502]
[1752966480008,1.04222491,117890.0,117880.0,0.12191502]
[1752966481167,1.03428073,117890.0,117880.0,0.12191502]
[1752966481385,1.04223161,117890.0,117880.0,0.12191502]
[1752966483022,0.88675031,117890.0,117880.0,0.12191502]
[1752966483224,1.04223161,117890.0,117880.0,0.12191502]
[1752966486853,1.02963161,117890.0,117880.0,0.12191502]
[1752966489743,1.02963083,117890.0,117880.0,0.12191502]
[1752966490157,0.87414953,117890.0,117880.0,0.12191502]
[1752966490367,1.02963083,117890.0,117880.0,0.12191502]
[1752966490782,0.87414953,117890.0,117880.0,0.12191502]
[1752966490996,1.02963083,117890.0,117880.0,0.12191502]
[1752966495405,1.02963075,117890.0,117880.0,0.12191502]
[1752966498366,1.0296505,117890.0,117880.0,0.12191502]
[1752966500217,1.02170048,117890.0,117880.0,0.12191502]
[1752966500426,1.0296507,117890.0,117880.0,0.12191502]
[1752966501020,1.197732,117890.0,117880.0,0.12191502]
[1752966501224,1.247732,117890.0,117880.0,0.12191502]
[1752966501657,1.25369433,117890.0,117880.0,0.12191502]
[1752966501834,1.09821303,117890.0,117880.0,0.12191502]
[1752966502494,1.0922507,117890.0,117880.0,0.12191502]
[1752966503221,1.247732,117890.0,117880.0,0.12191502]
[1752966503479,1.30369365,117890.0,117880.0,0.12191502]
[1752966503665,1.3036913,117890.0,117880.0,0.12191502]
[1752966504684,1.2536913,117890.0,117880.0,0.12191502]
[1752966504944,1.3036913,117890.0,117880.0,0.12191502]
[1752966505878,1.7972913,117890.0,117880.0,0.12191502]
[1752966507084,1.79727432,117890.0,117880.0,0.12191502]
[1752966507542,1.79727416,117890.0,117880.0,0.12191502]
[1752966508577,0.68212708,117870.0,117860.0,0.0156]
[1752966508812,0.98207698,117870.0,117860.0,0.0156]
[1752966509027,0.98207698,117870.0,117860.0,0.0187]
[1752966509914,0.98407698,117870.0,117860.0,0.0187]
[1752966510119,0.82859568,117870.0,117860.0,0.0187]
[1752966510784,0.83059568,117870.0,117860.0,0.0187]
[1752966511029,0.98607698,117870.0,117860.0,0.0187]
[1752966515644,0.83059568,117870.0,117860.0,0.0187]
[1752966517067,0.98607698,117870.0,117860.0,0.0187]
[1752966517517,0.98607698,117870.0,117860.0,0.02077]
[1752966519942,0.83059568,117870.0,117860.0,0.02077]
[1752966520360,0.83059568,117870.0,117860.0,0.03577]
[1752966522069,0.83059568,117870.0,117860.0,0.02077]
[1752966523303,0.98607698,117870.0,117860.0,0.02077]
[1752966524101,1.00196173,117870.0,117860.0,0.02077]
[1752966524408,0.98607698,117870.0,117860.0,0.02077]
[1752966526320,1.00196465,117870.0,117860.0,0.02077]
[1752966528005,0.84648335,117870.0,117860.0,0.02077]
[1752966529692,0.8464887,117870.0,117860.0,0.02077]
[1752966529994,0.83059568,117870.0,117860.0,0.02077]
[1752966530207,0.84648871,117870.0,117860.0,0.02077]
[1752966530413,0.84648859,117870.0,117860.0,0.02077]
[1752966533953,1.00196989,117870.0,117860.0,0.0156]
[1752966536350,1.00197804,117870.0,117860.0,0.0156]
[1752966541196,1.01698054,117870.0,117860.0,0.0156]
[1752966541450,0.86149924,117870.0,117860.0,0.0156]
[1752966543733,0.86149924,117870.0,117850.0,0.1735513]
[1752966543734,1.00849677,117870.0,117850.0,0.015]
[1752966543934,0.18670893,117830.0,117820.0,0.47068658]
[1752966544166,0.18670893,117830.0,117820.0,0.47276658]
[1752966544535,0.19519537,117830.0,117820.0,0.49894928]
[1752966544743,0.19519537,117830.0,117820.0,0.50743673]
[1752966545178,0.19519537,117830.0,117820.0,0.66291803]
[1752966545433,0.19524511,117830.0,117820.0,0.66291803]
[1752966546074,0.19524511,117830.0,117820.0,0.6714054]
[1752966546259,0.19524511,117830.0,117820.0,0.8288867]
[1752966546743,0.19524511,117830.0,117820.0,0.8318867]
[1752966547666,0.19524511,117830.0,117820.0,0.3654428]
[1752966547889,0.19524511,117830.0,117820.0,0.8318867]
[1752966548102,0.19524511,117830.0,117820.0,0.840374]
[1752966548330,0.19524511,117830.0,117820.0,0.84886123]
[1752966549042,0.20373191,117830.0,117820.0,0.84886087]
[1752966549240,0.02550905,117830.0,117820.0,0.84886043]
[1752966551000,0.02550898,117830.0,117820.0,0.84886043]
[1752966551449,0.01702233,117830.0,117820.0,0.84886043]
[1752966551663,0.02550884,117830.0,117820.0,0.84886043]
[1752966551876,0.01702233,117830.0,117820.0,0.84886043]
[1752966552086,0.01702225,117830.0,117820.0,0.84886043]
[1752966553938,0.02550862,117830.0,117820.0,0.84886043]
[1752966554352,0.03399513,117830.0,117820.0,0.84886043]
[1752966554552,0.02550862,117830.0,117820.0,0.84886043]
[1752966556498,0.01702225,117830.0,117820.0,0.84886043]
[1752966557012,0.02550869,117830.0,117820.0,0.84886043]
[1752966557621,0.02550862,117830.0,117820.0,0.84886043]
[1752966558017,0.03399513,117830.0,117820.0,0.84886043]
[1752966558246,0.02550862,117830.0,117820.0,0.84886043]
[1752966558669,0.03399513,117830.0,117820.0,0.84886043]
[1752966558883,0.02550862,117830.0,117820.0,0.84886043]
[1752966559104,0.0339952,117830.0,117820.0,0.84886043]
[1752966559304,0.03399513,117830.0,117820.0,0.84886043]
[1752966559668,0.03399506,117830.0,117820.0,0.84886043]
[1752966560700,0.02550862,117830.0,117820.0,0.84886043]
[1752966562424,0.03399506,117830.0,117820.0,0.84886043]
[1752966562646,0.02550862,117830.0,117820.0,0.84886043]
[1752966566172,0.03399506,117830.0,117820.0,0.84886043]
[1752966568588,0.04248164,117830.0,117820.0,0.84886043]
[1752966568975,0.03399506,117830.0,117820.0,0.84886043]
[1752966570151,0.02550862,117830.0,117820.0,0.84886043]
[1752966570483,0.03399506,117830.0,117820.0,0.84886043]
[1752966571727,0.04248164,117830.0,117820.0,0.84886043]
[1752966572367,0.04248207,117830.0,117820.0,0.84886043]